bitfinex/quotes_BTCUSD_20240623
["timestamp","ask_amount","ask_price","bid_price","bid_amount"]
[1719162652347,17.46382736,64078.0,64077.0,3.37661073]
[1719162652552,17.46382736,64078.0,64077.0,3.3766102]
[1719162652850,17.46382736,64078.0,64077.0,3.47024044]
[1719162654094,17.46382736,64078.0,64077.0,3.47023887]
[1719162655304,17.46382736,64078.0,64077.0,2.83605873]
[1719162655511,17.46382736,64078.0,64077.0,3.37659274]
[1719162655884,17.46238718,64078.0,64077.0,3.37659274]
[1719162656345,17.46081718,64078.0,64077.0,3.37659274]
[1719162657154,17.46081718,64078.0,64077.0,3.37659084]
[1719162657685,17.37033775,64078.0,64077.0,3.37659084]
[1719162657884,17.37033775,64078.0,64077.0,3.49362672]
[1719162658089,17.37033775,64078.0,64077.0,3.37659084]
[1719162658506,17.37033775,64078.0,64077.0,3.36259084]
[1719162658732,17.37033775,64078.0,64077.0,3.34859084]
[1719162658930,17.37033775,64078.0,64077.0,3.37659084]
[1719162659407,17.37033775,64078.0,64077.0,3.34859084]
[1719162659755,17.37033775,64078.0,64077.0,3.37659084]
[1719162660159,17.37033775,64078.0,64077.0,3.37656865]
[1719162660488,17.37033775,64078.0,64077.0,2.83605873]
[1719162660693,17.37033775,64078.0,64077.0,3.37656885]
[1719162661730,17.37033775,64078.0,64077.0,3.37656891]
[1719162662357,17.37033775,64078.0,64077.0,2.83605873]
[1719162662553,17.37033775,64078.0,64077.0,3.3765693]
[1719162665494,17.37033775,64078.0,64077.0,2.78355873]
[1719162665826,17.34178875,64078.0,64077.0,3.37656981]
[1719162666026,17.34178875,64078.0,64077.0,3.3478892]
[1719162667016,17.34178875,64078.0,64077.0,3.6600132]
[1719162668376,17.34178875,64078.0,64077.0,3.11950212]
[1719162668529,17.34178875,64078.0,64077.0,3.66000721]
[1719162668913,17.34178875,64078.0,64077.0,4.00609949]
[1719162671104,16.82871992,64078.0,64077.0,4.00609949]
[1719162671293,16.81871992,64078.0,64077.0,4.00609949]
[1719162671501,16.81871992,64078.0,64077.0,4.00605985]
[1719162672285,16.6903501,64078.0,64077.0,4.00605985]
[1719162673413,16.6903501,64078.0,64077.0,4.14647843]
[1719162673678,16.6903501,64078.0,64077.0,4.00605985]
[1719162673886,16.6903501,64078.0,64077.0,4.10371257]
[1719162674542,16.6903501,64078.0,64077.0,4.10369341]
[1719162675507,16.6903501,64078.0,64077.0,4.00604069]
[1719162676994,16.6613501,64078.0,64077.0,4.00604069]
[1719162677208,16.1952501,64078.0,64077.0,4.00604069]
[1719162677409,16.1892501,64078.0,64077.0,4.14640588]
[1719162677613,16.1892501,64078.0,64077.0,4.14641584]
[1719162677987,16.1892501,64078.0,64077.0,4.08162155]
[1719162678204,16.1892501,64078.0,64077.0,4.14642015]
[1719162678399,16.1892501,64078.0,64077.0,4.00605204]
[1719162678595,16.1892501,64078.0,64077.0,4.14642015]
[1719162678792,16.1892501,64078.0,64077.0,4.09392015]
[1719162678996,16.1892501,64078.0,64077.0,4.00605204]
[1719162679360,16.1522501,64078.0,64077.0,4.00605204]
[1719162679572,16.13165017,64078.0,64077.0,4.00605204]
[1719162679853,16.13165017,64078.0,64077.0,4.03413766]
[1719162680186,16.13165017,64078.0,64077.0,3.68804541]
[1719162680584,16.13165017,64078.0,64077.0,3.62324868]
[1719162680816,16.08565017,64078.0,64077.0,3.68804753]
[1719162681157,16.08565017,64078.0,64077.0,3.82840167]
[1719162682712,16.08565017,64078.0,64077.0,3.70679719]
[1719162683529,16.07565017,64078.0,64077.0,3.70677844]
[1719162683920,16.07065017,64078.0,64077.0,3.70677844]
[1719162684113,16.02665017,64078.0,64077.0,3.70677844]
[1719162684859,15.99069211,64078.0,64077.0,3.70677844]
[1719162685644,15.96869211,64078.0,64077.0,3.70677844]
[1719162686634,15.91369211,64078.0,64077.0,3.80442748]
[1719162686851,15.91369211,64078.0,64077.0,3.8470982]
[1719162687069,15.88269211,64078.0,64077.0,3.70677786]
[1719162687303,15.88269211,64078.0,64077.0,3.84709913]
[1719162687505,15.88269211,64078.0,64077.0,3.94475035]
[1719162687720,15.88269211,64078.0,64077.0,3.84709913]
[1719162688293,15.88269211,64078.0,64077.0,3.84709676]
[1719162689187,15.88269211,64078.0,64077.0,3.8283477]
[1719162689390,15.88269211,64078.0,64077.0,3.84709676]
[1719162689597,15.88269211,64078.0,64077.0,3.14758774]
[1719162689795,15.88269211,64078.0,64077.0,3.84710624]
[1719162690002,15.85169211,64078.0,64077.0,3.84710624]
[1719162690639,15.85169211,64078.0,64077.0,3.82835703]
[1719162690837,15.85169211,64078.0,64077.0,3.84710624]
[1719162691463,15.7089482,64078.0,64077.0,3.94475844]
[1719162691663,15.66465234,64078.0,64077.0,3.80443584]
[1719162692111,15.5361683,64078.0,64077.0,3.78568663]
[1719162692325,15.4783873,64078.0,64077.0,3.78568663]
[1719162692743,15.4783873,64078.0,64077.0,3.72088935]
[1719162692946,15.4755373,64078.0,64077.0,3.7856849]
[1719162693156,15.4455373,64078.0,64077.0,3.7856849]
[1719162693286,15.3914873,64078.0,64077.0,3.7856849]
[1719162694114,15.3414873,64078.0,64077.0,3.8796249]
[1719162694318,15.3414873,64078.0,64077.0,4.5796249]
[1719162695367,15.33729446,64078.0,64077.0,4.5796249]
[1719162695719,15.33729446,64078.0,64077.0,4.16877041]
[1719162695901,15.33729446,64078.0,64077.0,4.57960954]
[1719162696107,15.33729446,64078.0,64077.0,4.03917994]
[1719162696413,15.33729446,64078.0,64077.0,4.5796095]
[1719162696828,15.33227256,64078.0,64077.0,4.6109295]
[1719162697049,15.22974,64078.0,64077.0,4.62030381]
[1719162697243,15.18172845,64078.0,64077.0,4.62030381]
[1719162697397,15.18172845,64078.0,64077.0,4.20946471]
[1719162697603,15.00587649,64078.0,64077.0,4.62029982]
[1719162697826,15.00287649,64078.0,64077.0,5.38168403]
[1719162698143,15.00287649,64078.0,64077.0,5.39568403]
[1719162698651,15.00287649,64078.0,64077.0,5.38168403]
[1719162698873,15.00287649,64078.0,64077.0,5.30751373]
[1719162699029,15.00287649,64078.0,64077.0,5.38168252]
[1719162699229,15.00287649,64078.0,64077.0,5.37230831]
[1719162699434,15.00287649,64078.0,64077.0,5.38630831]
[1719162699637,15.00287649,64078.0,64077.0,5.37230831]
[1719162699998,14.99887649,64078.0,64077.0,5.38630831]
[1719162700197,14.98187649,64078.0,64077.0,5.38630831]
[1719162700414,14.97687649,64078.0,64077.0,5.37230831]
[1719162700876,14.94687649,64078.0,64077.0,5.37230831]
[1719162701022,14.94687649,64078.0,64077.0,4.98448566]
[1719162701224,14.94687649,64078.0,64077.0,4.99848566]
[1719162701659,14.94687649,64078.0,64077.0,4.94598566]
[1719162701861,14.94687649,64078.0,64077.0,4.55380754]
[1719162702090,14.94687649,64078.0,64077.0,4.55843311]
[1719162702427,14.94687649,64078.0,64077.0,4.61093311]
[1719162702755,14.94687649,64078.0,64077.0,3.91093311]
[1719162703151,14.94687649,64078.0,64077.0,3.65973311]
[1719162704717,14.94687649,64078.0,64077.0,3.59493703]
[1719162704861,14.94687649,64078.0,64077.0,3.65974209]
[1719162705226,14.94687649,64078.0,64077.0,3.65974202]
[1719162705808,14.91687649,64078.0,64077.0,3.65974202]
[1719162706380,14.91687649,64078.0,64077.0,3.99506467]
[1719162706581,14.91687649,64078.0,64077.0,4.04756467]
[1719162707547,14.91687649,64078.0,64077.0,4.43512623]
[1719162707752,14.91687649,64078.0,64077.0,4.30553277]
[1719162707962,14.91687649,64078.0,64077.0,4.43512643]
[1719162710864,14.91687649,64078.0,64077.0,4.08907464]
[1719162711072,14.91687649,64078.0,64077.0,4.43512706]
[1719162713987,14.91687649,64078.0,64077.0,3.95948098]
[1719162714277,14.91687649,64078.0,64077.0,4.43512706]
[1719162715372,14.91687649,64078.0,64077.0,3.89468415]
[1719162715575,14.91687649,64078.0,64077.0,4.43512706]
[1719162715776,14.91687649,64078.0,64077.0,4.56472072]
[1719162715976,14.91687649,64078.0,64077.0,4.43512706]
[1719162719294,14.91687649,64078.0,64077.0,4.91960045]
[1719162720195,14.91687649,64078.0,64077.0,4.43512706]
[1719162720391,14.90487649,64078.0,64077.0,4.43512706]
[1719162720593,14.90487649,64078.0,64077.0,4.55342706]
[1719162720780,14.90487649,64078.0,64077.0,5.20457499]
[1719162720781,14.84146188,64078.0,64077.0,5.20457499]
[1719162720988,14.82194969,64078.0,64077.0,4.41981624]
[1719162722085,14.81994969,64078.0,64077.0,4.41981624]
[1719162722487,14.81994969,64078.0,64077.0,4.290196]
[1719162722684,14.81994969,64078.0,64077.0,4.41978581]
[1719162722890,14.81494969,64078.0,64077.0,4.22540107]
[1719162723096,14.81494969,64078.0,64077.0,4.41978578]
[1719162723342,14.81494969,64078.0,64077.0,5.11978578]
[1719162724141,14.81494969,64078.0,64077.0,5.11978528]
[1719162725166,14.79494969,64078.0,64077.0,5.11978528]
[1719162725584,14.79494969,64078.0,64077.0,5.11978205]
[1719162726928,14.79494969,64078.0,64077.0,5.85204063]
[1719162727105,14.79494969,64078.0,64077.0,5.41208122]
[1719162727321,14.79494969,64078.0,64077.0,4.62732264]
[1719162727911,14.79494969,64078.0,64077.0,4.63669701]
[1719162728298,14.79494969,64078.0,64077.0,4.62732264]
[1719162728500,14.79494969,64078.0,64077.0,4.08692506]
[1719162728702,14.79494969,64078.0,64077.0,4.62737119]
[1719162729498,14.78994969,64078.0,64077.0,4.62737119]
[1719162729873,14.78394969,64078.0,64077.0,4.63674577]
[1719162730064,14.78394969,64078.0,64077.0,4.62737119]
[1719162730479,14.78394969,64078.0,64077.0,4.63674577]
[1719162731541,14.78394969,64078.0,64077.0,4.63673734]
[1719162731966,14.78394969,64078.0,64077.0,4.63673882]
[1719162732698,14.78394969,64078.0,64077.0,5.41212303]
[1719162732925,14.78394969,64078.0,64077.0,5.4027485]
[1719162733164,14.78394969,64078.0,64077.0,4.05198415]
[1719162733373,14.78394969,64078.0,64077.0,4.59243815]
[1719162734224,14.56925673,64078.0,64077.0,4.59243815]
[1719162734552,14.56925673,64078.0,64077.0,4.05198415]
[1719162734757,14.56925673,64078.0,64077.0,4.59243564]
[1719162735155,14.56925673,64078.0,64077.0,5.0769169]
[1719162735479,14.56925673,64078.0,64077.0,4.59243564]
[1719162735998,14.56925673,64078.0,64077.0,5.29383908]
[1719162736230,14.56925673,64078.0,64077.0,5.28446439]
[1719162736385,14.56925673,64078.0,64077.0,5.29383908]
[1719162737609,14.56925673,64078.0,64077.0,4.18157972]
[1719162737814,14.56925673,64078.0,64077.0,5.2938193]
[1719162738043,14.56925673,64078.0,64077.0,4.53992664]
[1719162738225,14.56925673,64078.0,64077.0,4.59242664]
[1719162740175,14.54842973,64078.0,64077.0,5.28444482]
[1719162740406,14.54842973,64078.0,64077.0,5.2938193]
[1719162740777,14.54842973,64078.0,64077.0,5.28445013]
[1719162741202,14.54842973,64078.0,64077.0,5.28444901]
[1719162741388,14.54842973,64078.0,64077.0,5.29382356]
[1719162741606,14.54842973,64078.0,64077.0,5.28444901]
[1719162741822,14.54842973,64078.0,64077.0,5.07690238]
[1719162742281,14.54842973,64078.0,64077.0,5.28444867]
[1719162742708,14.54842973,64078.0,64077.0,4.59242774]
[1719162743123,14.54842973,64078.0,64077.0,5.28444867]
[1719162743469,14.54842973,64078.0,64077.0,5.07690204]
[1719162743666,14.54842973,64078.0,64077.0,5.01211058]
[1719162743881,14.54842973,64078.0,64077.0,4.59243097]
[1719162744083,14.54842973,64078.0,64077.0,5.28445893]
[1719162744584,14.54842973,64078.0,64077.0,5.29383354]
[1719162745317,14.54842973,64078.0,64077.0,5.28445893]
[1719162745640,14.54842973,64078.0,64077.0,5.08628249]
[1719162745833,14.54842973,64078.0,64077.0,5.29383622]
[1719162746430,14.54842973,64078.0,64077.0,5.28446161]
[1719162746633,14.54842973,64078.0,64077.0,5.08628249]
[1719162746832,14.54842973,64078.0,64077.0,5.08627967]
[1719162748189,14.54842973,64078.0,64077.0,4.47041567]
[1719162748434,14.54842973,64078.0,64077.0,3.14605594]
[1719162748435,14.83402973,64078.0,64077.0,3.14605594]
[1719162748637,14.83402973,64078.0,64077.0,3.10090374]
[1719162749152,14.83402973,64078.0,64077.0,3.08690374]
[1719162749535,14.83402973,64078.0,64077.0,3.10090374]
[1719162749741,14.83402973,64078.0,64077.0,2.90656442]
[1719162749943,14.83402973,64078.0,64077.0,3.12398426]
[1719162750190,14.83402973,64078.0,64077.0,2.63426635]
[1719162750369,14.83402973,64078.0,64077.0,3.10998425]
[1719162750685,14.83402973,64078.0,64077.0,3.12398425]
[1719162751201,14.83402973,64078.0,64077.0,3.24106247]
[1719162751449,14.83402973,64078.0,64077.0,3.24106693]
[1719162752566,14.83402973,64078.0,64077.0,3.12398871]
[1719162752804,14.83402973,64078.0,64077.0,2.92957247]
[1719162753036,14.83402973,64078.0,64077.0,3.12399684]
[1719162753496,14.83402973,64078.0,64077.0,3.05918872]
[1719162753736,14.83402973,64078.0,64077.0,3.0714963]
[1719162754191,14.83402973,64078.0,64077.0,3.05918872]
[1719162754428,14.83402973,64078.0,64077.0,3.05918876]
[1719162754610,14.83402973,64078.0,64077.0,3.15279717]
[1719162754955,14.83402973,64078.0,64077.0,3.10029717]
[1719162755182,14.83402973,64078.0,64077.0,3.15279717]
[1719162756045,14.83402973,64078.0,64077.0,3.15278648]
[1719162757114,14.83402973,64078.0,64077.0,3.10028648]
[1719162757343,14.83402973,64078.0,64077.0,3.15278648]
[1719162757487,14.83402973,64078.0,64077.0,3.05918782]
[1719162757875,14.83402973,64078.0,64077.0,3.00668782]
[1719162758034,14.83402973,64078.0,64077.0,3.05918782]
[1719162759010,14.83402973,64078.0,64077.0,2.71307582]
[1719162759209,14.83402973,64078.0,64077.0,3.05918809]
[1719162759405,14.83402973,64078.0,64077.0,2.92957203]
[1719162759633,14.83402973,64078.0,64077.0,3.05918794]
[1719162759996,14.83402973,64078.0,64077.0,3.00668794]
[1719162760245,14.83402973,64078.0,64077.0,3.05918794]
[1719162760739,14.83402973,64078.0,64077.0,3.05918749]
[1719162762347,14.83402973,64078.0,64077.0,3.15273737]
[1719162762558,14.477575,64078.0,64077.0,3.8477576]
[1719162762760,14.477575,64078.0,64077.0,3.73081017]
[1719162765093,14.477575,64078.0,64077.0,3.25509048]
[1719162765286,14.477575,64078.0,64077.0,3.73074307]
[1719162767554,14.477575,64078.0,64077.0,4.04286707]
[1719162768130,14.477575,64078.0,64077.0,3.50240774]
[1719162768322,14.477575,64078.0,64077.0,4.04286154]
[1719162768733,14.287762,64078.0,64077.0,3.84205145]
[1719162768950,14.287762,64078.0,64077.0,4.37708528]
[1719162769153,14.287762,64078.0,64077.0,4.23675145]
[1719162769871,14.287762,64078.0,64077.0,4.23673326]
[1719162771268,14.287762,64078.0,64077.0,3.69629774]
[1719162771441,14.249762,64078.0,64077.0,4.13673597]
[1719162771646,14.249762,64078.0,64077.0,4.27707436]
[1719162771846,14.249762,64078.0,64077.0,3.38352197]
[1719162772072,14.249762,64078.0,64077.0,3.43602197]
[1719162773694,14.211762,64078.0,64077.0,3.43602197]
[1719162773927,14.211762,64078.0,64077.0,3.74814597]
[1719162774289,14.211762,64078.0,64077.0,3.74816327]
[1719162774529,14.211762,64078.0,64077.0,3.74816366]
[1719162775049,14.211762,64078.0,64077.0,3.43603966]
[1719162775688,14.211762,64078.0,64077.0,3.43604546]
[1719162777331,14.211762,64078.0,64077.0,3.74816946]
[1719162777528,14.211762,64078.0,64077.0,3.55376983]
[1719162777729,14.211762,64078.0,64077.0,3.74816587]
[1719162777929,14.211762,64078.0,64077.0,3.68337538]
[1719162778132,14.211762,64078.0,64077.0,3.74817658]
[1719162778733,14.211762,64078.0,64077.0,3.43605258]
[1719162779134,14.211762,64078.0,64077.0,3.24165276]
[1719162779333,14.211762,64078.0,64077.0,3.43605322]
[1719162780019,14.211762,64078.0,64077.0,3.74817722]
[1719162780163,14.211762,64078.0,64077.0,4.03467722]
[1719162780714,14.172762,64078.0,64077.0,4.03466841]
[1719162781533,14.145483,64078.0,64077.0,4.41535841]
[1719162781738,14.028483,64078.0,64077.0,4.41535841]
[1719162781939,13.859893,64078.0,64077.0,4.38727279]
[1719162782155,13.859893,64078.0,64077.0,4.48492333]
[1719162782401,13.859893,64078.0,64077.0,4.49429817]
[1719162782598,13.859893,64078.0,64077.0,5.18492333]
[1719162782997,13.859893,64078.0,64077.0,4.85169119]
[1719162783320,13.859893,64078.0,64077.0,5.39208713]
[1719162783742,13.859893,64078.0,64077.0,5.1848586]
[1719162784059,13.859893,64078.0,64077.0,5.39206944]
[1719162785965,13.859893,64078.0,64077.0,5.26244451]
[1719162786149,13.859893,64078.0,64077.0,5.39202564]
[1719162786360,13.859893,64078.0,64077.0,4.64446266]
[1719162786656,13.83000606,64078.0,64077.0,5.39200929]
[1719162786835,13.81951697,64078.0,64077.0,5.37800929]
[1719162787281,13.52934496,64078.0,64077.0,5.17085331]
[1719162787445,13.52778962,64078.0,64077.0,5.17085331]
[1719162787648,13.52778962,64078.0,64077.0,5.18485331]
[1719162788052,13.52778962,64078.0,64077.0,5.17085331]
[1719162788575,13.52778962,64078.0,64077.0,5.15685331]
[1719162788783,13.52778962,64078.0,64077.0,5.17085331]
[1719162789079,13.52778962,64078.0,64077.0,5.18485331]
[1719162789938,13.50749376,64078.0,64077.0,6.17228995]
[1719162791620,13.43458242,64078.0,64077.0,6.17228995]
[1719162791931,12.6958602,64078.0,64077.0,6.35298696]
[1719162792142,12.66556168,64078.0,64077.0,5.96513791]
[1719162793702,12.63494865,64078.0,64077.0,5.96513791]
[1719162794664,12.17784865,64078.0,64077.0,5.96513791]
[1719162794969,12.17784865,64078.0,64077.0,5.77077571]
[1719162795173,12.09187926,64078.0,64077.0,5.74512996]
[1719162795378,12.08495914,64078.0,64077.0,6.06512996]
[1719162795533,12.08495914,64078.0,64077.0,5.93554945]
[1719162795754,12.08495914,64078.0,64077.0,6.06512014]
[1719162796257,11.99595914,64078.0,64077.0,6.06512014]
[1719162796665,11.99595914,64078.0,64077.0,6.06512128]
[1719162797019,11.77742989,64078.0,64077.0,6.84050549]
[1719162797288,11.76281686,64078.0,64077.0,6.06512128]
[1719162797711,11.30571686,64078.0,64077.0,6.06512128]
[1719162798131,11.29254147,64078.0,64077.0,6.06512128]
[1719162798354,11.23749294,64078.0,64077.0,6.06512128]
[1719162799381,11.22206808,64078.0,64077.0,6.05112128]
[1719162799803,11.22206808,64078.0,64077.0,6.06512128]
[1719162800291,11.13198808,64078.0,64077.0,6.03712128]
[1719162800594,11.10198808,64078.0,64077.0,6.06512128]
[1719162800749,11.06418808,64078.0,64077.0,6.06512128]
[1719162801157,11.06263223,64078.0,64077.0,5.93554422]
[1719162801364,11.06263223,64078.0,64077.0,6.06511306]
[1719162801569,11.02485223,64078.0,64077.0,6.06511306]
[1719162802480,11.02485223,64078.0,64077.0,6.84049727]
[1719162803904,11.02176223,64078.0,64077.0,6.84049727]
[1719162804203,11.02176223,64078.0,64077.0,6.64614401]
[1719162804385,11.02176223,64078.0,64077.0,6.84050286]
[1719162804600,11.02176223,64078.0,64077.0,6.30015787]
[1719162804725,10.97869223,64078.0,64077.0,6.84050098]
[1719162805751,10.97869223,64078.0,64077.0,6.84050311]
[1719162805958,10.97869223,64078.0,64077.0,6.93718283]
[1719162806166,10.97869223,64078.0,64077.0,6.84050311]
[1719162807133,11.27029223,64078.0,64077.0,5.78576811]
[1719162807342,11.27029223,64078.0,64077.0,5.55722734]
[1719162807545,11.27029223,64078.0,64077.0,4.93155451]
[1719162807796,11.27029223,64078.0,64077.0,4.91280629]
[1719162808427,11.27029223,64078.0,64077.0,4.88480629]
[1719162808756,11.27029223,64078.0,64077.0,4.89880629]
[1719162809159,11.27029223,64078.0,64077.0,4.91280629]
[1719162809361,11.27029223,64078.0,64077.0,4.21280629]
[1719162809760,11.27029223,64078.0,64077.0,4.19880629]
[1719162810007,11.27029223,64078.0,64077.0,4.54793029]
[1719162810219,11.27029223,64078.0,64077.0,4.07230598]
[1719162810426,11.27029223,64078.0,64077.0,4.54794496]
[1719162811159,11.27029223,64078.0,64077.0,4.68818165]
[1719162812305,11.27029223,64078.0,64077.0,5.38818165]
[1719162813065,11.27029223,64078.0,64077.0,6.16356586]
[1719162813284,11.27029223,64078.0,64077.0,6.18231365]
[1719162813494,10.97602747,64078.0,64077.0,6.27997333]
[1719162813660,10.97602747,64078.0,64077.0,5.58054497]
[1719162813892,10.97602747,64078.0,64077.0,6.1635755]
[1719162814480,10.97135943,64078.0,64077.0,6.1635755]
[1719162814677,10.97135943,64078.0,64077.0,6.26122517]
[1719162814883,10.97135943,64078.0,64077.0,6.26122648]
[1719162816411,10.97135943,64078.0,64077.0,5.580546]
[1719162816613,10.97135943,64078.0,64077.0,6.2612323]
[1719162817602,10.72928592,64078.0,64077.0,6.2612323]
[1719162817817,10.72928592,64078.0,64077.0,6.3137323]
[1719162818371,10.72928592,64078.0,64077.0,6.21608263]
[1719162818773,10.72928592,64078.0,64077.0,5.51608263]
[1719162819571,10.72928592,64078.0,64077.0,5.203982]
[1719162820414,10.72928592,64078.0,64077.0,5.903982]
[1719162820616,10.72928592,64078.0,64077.0,6.216106]
[1719162822565,10.72928592,64078.0,64077.0,6.21612032]
[1719162823058,10.72928592,64078.0,64077.0,5.53539633]
[1719162823307,10.72928592,64078.0,64077.0,6.21612827]
[1719162823439,10.72928592,64078.0,64077.0,6.07583749]
[1719162824401,10.72928592,64078.0,64077.0,5.76371349]
[1719162825311,10.72928592,64078.0,64077.0,5.8515156]
[1719162825732,10.72928592,64078.0,64077.0,5.76371032]
[1719162826123,10.72928592,64078.0,64077.0,5.90402106]
[1719162826720,10.72928592,64078.0,64077.0,5.85152106]
[1719162827128,10.72928592,64078.0,64077.0,4.42863685]
[1719162828715,10.86368592,64078.0,64077.0,4.33476142]
[1719162829265,10.86368592,64078.0,64077.0,4.19444631]
[1719162831701,10.86368592,64078.0,64077.0,3.65399812]
[1719162831935,10.86368592,64078.0,64077.0,3.84839132]
[1719162832304,10.86368592,64078.0,64077.0,4.19444857]
[1719162833404,10.86368592,64078.0,64077.0,4.19444895]
[1719162834759,10.86368592,64078.0,64077.0,3.8483917]
[1719162834968,10.86368592,64078.0,64077.0,4.19445039]
[1719162835184,10.86368592,64078.0,64077.0,4.21319978]
[1719162835772,10.86368592,64078.0,64077.0,3.65399812]
[1719162835969,10.86368592,64078.0,64077.0,4.21320023]
[1719162836225,10.86368592,64078.0,64077.0,4.19445081]
[1719162838014,10.86368592,64078.0,64077.0,4.06485428]
[1719162838187,10.86368592,64078.0,64077.0,4.19445012]
[1719162838390,10.86368592,64078.0,64077.0,4.29210323]
[1719162838971,10.72928592,64078.0,64077.0,4.29210323]
[1719162839333,10.72504211,64078.0,64077.0,4.29210323]
[1719162840693,10.72504211,64078.0,64077.0,4.00560323]
[1719162840905,10.72504211,64078.0,64077.0,3.65954499]
[1719162841052,10.72504211,64078.0,64077.0,4.00560322]
[1719162841472,10.58616253,64078.0,64077.0,3.62373915]
[1719162841693,10.39724077,64078.0,64077.0,5.21151722]
[1719162841842,10.16161881,64078.0,64077.0,5.56211722]
[1719162842041,10.15930433,64078.0,64077.0,5.56211722]
[1719162842249,10.15315793,64078.0,64077.0,5.56211722]
[1719162842651,10.15315793,64078.0,64077.0,5.56211082]
[1719162843581,10.15315793,64078.0,64077.0,5.40956292]
[1719162843814,10.15315793,64078.0,64077.0,5.56206292]
[1719162845230,10.14866194,64078.0,64077.0,5.56206292]
[1719162846008,10.14866194,64078.0,64077.0,5.46206292]
[1719162846226,10.14866194,64078.0,64077.0,5.76922942]
[1719162846606,10.14866194,64078.0,64077.0,5.56206304]
[1719162846823,10.14418707,64078.0,64077.0,5.56206304]
[1719162847075,10.11218707,64078.0,64077.0,5.46206304]
[1719162847285,10.11218707,64078.0,64077.0,5.05896304]
[1719162847455,10.11218707,64078.0,64077.0,5.12083731]
[1719162847952,10.08218707,64078.0,64077.0,5.12083731]
[1719162848535,10.07922453,64078.0,64077.0,5.25666304]
[1719162849510,10.07922453,64078.0,64077.0,5.25668607]
[1719162849906,10.07922453,64078.0,64077.0,5.25668657]
[1719162850552,10.07922453,64078.0,64077.0,5.46208657]
[1719162851333,10.07222453,64078.0,64077.0,5.66941504]
[1719162851531,10.06561566,64078.0,64077.0,5.76941504]
[1719162852442,10.06561566,64078.0,64077.0,5.56208657]
[1719162852443,10.06361566,64078.0,64077.0,5.56208657]
[1719162852665,10.06361566,64078.0,64077.0,6.04653623]
[1719162853054,10.04589643,64078.0,64077.0,6.04653623]
[1719162855671,10.04589643,64078.0,64077.0,5.98170469]
[1719162855875,10.04589643,64078.0,64077.0,5.94649641]
[1719162856261,10.04589643,64078.0,64077.0,5.89399641]
[1719162856471,10.032485,64078.0,64077.0,5.46206339]
[1719162856801,10.02962423,64078.0,64077.0,5.94649641]
[1719162856921,10.02962423,64078.0,64077.0,5.46206339]
[1719162857129,10.02962423,64078.0,64077.0,5.94649641]
[1719162857377,10.02962423,64078.0,64077.0,5.46206339]
[1719162857580,10.02962423,64078.0,64077.0,5.94649641]
[1719162857882,10.02962423,64078.0,64077.0,5.46206339]
[1719162858084,10.02962423,64078.0,64077.0,5.94649641]
[1719162858284,10.02962423,64078.0,64077.0,5.46206339]
[1719162858462,10.02962423,64078.0,64077.0,5.94649641]
[1719162858664,10.02962423,64078.0,64077.0,4.92166523]
[1719162858869,10.02962423,64078.0,64077.0,5.46207316]
[1719162859066,10.02962423,64078.0,64077.0,5.05125046]
[1719162859267,10.02962423,64078.0,64077.0,5.46207436]
[1719162859771,9.97852298,64078.0,64077.0,5.94651746]
[1719162859930,9.97852298,64078.0,64077.0,5.46207436]
[1719162860130,9.97852298,64078.0,64077.0,5.94651746]
[1719162860330,9.97852298,64078.0,64077.0,5.46207333]
[1719162860574,9.97852298,64078.0,64077.0,5.94651538]
[1719162860769,9.97852298,64078.0,64077.0,5.46207333]
[1719162861505,9.93452298,64078.0,64077.0,5.46207333]
[1719162861715,9.93452298,64078.0,64077.0,5.94651538]
[1719162861921,9.93452298,64078.0,64077.0,5.46207127]
[1719162862123,9.93452298,64078.0,64077.0,5.94651332]
[1719162862333,9.93452298,64078.0,64077.0,5.46207127]
[1719162862483,9.93452298,64078.0,64077.0,5.94651332]
[1719162862689,9.93452298,64078.0,64077.0,5.46207127]
[1719162862905,9.93452298,64078.0,64077.0,5.94651332]
[1719162863227,9.93452298,64078.0,64077.0,5.46207127]
[1719162863402,9.93452298,64078.0,64077.0,5.94651332]
[1719162863565,9.93452298,64078.0,64077.0,5.46207127]
[1719162863771,9.93452298,64078.0,64077.0,5.94651332]
[1719162863970,9.93452298,64078.0,64077.0,5.46207127]
[1719162864173,9.93452298,64078.0,64077.0,6.04651332]
[1719162864401,9.93452298,64078.0,64077.0,5.56207127]
[1719162864596,9.93452298,64078.0,64077.0,6.04651332]
[1719162864799,9.93452298,64078.0,64077.0,5.39727433]
[1719162865002,9.93452298,64078.0,64077.0,5.89400184]
[1719162865204,9.93452298,64078.0,64077.0,5.46206612]
[1719162865404,9.93452298,64078.0,64077.0,5.94650184]
[1719162865604,9.93452298,64078.0,64077.0,5.46206612]
[1719162865898,9.93452298,64078.0,64077.0,5.94650184]
[1719162866102,9.93452298,64078.0,64077.0,5.46206612]
[1719162866302,9.93452298,64078.0,64077.0,5.94650184]
[1719162866535,9.93452298,64078.0,64077.0,5.46206612]
[1719162866773,9.93452298,64078.0,64077.0,5.94650184]
[1719162867050,9.93452298,64078.0,64077.0,5.46206612]
[1719162867346,9.82583039,64078.0,64077.0,5.56206612]
[1719162867559,9.82583039,64078.0,64077.0,6.04650184]
[1719162867705,9.80823992,64078.0,64077.0,6.04650184]
[1719162867910,9.70205195,64078.0,64077.0,6.0464729]
[1719162868358,9.70205195,64078.0,64077.0,5.02166523]
[1719162868550,9.70205195,64078.0,64077.0,6.0464757]
[1719162868732,9.70205195,64078.0,64077.0,5.56205234]
[1719162868927,9.62980438,64078.0,64077.0,6.0464757]
[1719162869335,9.62825137,64078.0,64077.0,6.0464757]
[1719162869940,9.52694107,64078.0,64077.0,6.0464757]
[1719162870457,9.52694107,64078.0,64077.0,5.9939757]
[1719162870693,9.50694107,64078.0,64077.0,6.0464757]
[1719162870902,9.20329738,64078.0,64077.0,5.91689542]
[1719162871120,9.11813138,64078.0,64077.0,6.04647298]
[1719162872590,9.11813138,64078.0,64077.0,5.56204962]
[1719162872812,9.11813138,64078.0,64077.0,6.04647298]
[1719162873954,9.11813138,64078.0,64077.0,5.02166523]
[1719162874169,9.11813138,64078.0,64077.0,6.0464651]
[1719162874371,9.11813138,64078.0,64077.0,5.46204675]
[1719162874593,9.11813138,64078.0,64077.0,5.5958651]
[1719162874712,9.11813138,64078.0,64077.0,5.11144675]
[1719162875475,9.11813138,64078.0,64077.0,5.05894675]
[1719162875684,9.09993138,64078.0,64077.0,5.11144675]
[1719162875881,9.02349138,64078.0,64077.0,5.11144675]
[1719162877039,9.02349138,64078.0,64077.0,5.11147489]
[1719162877354,9.02349138,64078.0,64077.0,4.57106523]
[1719162877554,9.02349138,64078.0,64077.0,5.11147566]
[1719162878571,9.02349138,64078.0,64077.0,5.11147892]
[1719162879857,9.02349138,64078.0,64077.0,5.59592652]
[1719162880103,9.02349138,64078.0,64077.0,5.11147683]
[1719162880273,9.02349138,64078.0,64077.0,5.5959223]
[1719162880472,9.02349138,64078.0,64077.0,5.11147683]
[1719162880694,9.02349138,64078.0,64077.0,5.5959223]
[1719162880875,9.02349138,64078.0,64077.0,5.11147683]
[1719162881037,9.02349138,64078.0,64077.0,5.5959223]
[1719162881237,9.02349138,64078.0,64077.0,5.11147683]